bitfinex-derivatives/quotes_BNBF0:USTF0_20251220
["timestamp","ask_amount","ask_price","bid_price","bid_amount"]
[1766206830539,0.67131984,855.08,853.94,0.20361236]
[1766206830737,0.67131984,855.07,853.94,0.20361236]
[1766206830939,0.67131984,855.06,853.94,0.20361236]
[1766206831142,0.67131984,855.05,853.94,0.20361236]
[1766206831343,0.67131984,855.04,853.94,0.20361236]
[1766206831543,5.79473377,855.11,853.94,0.20361236]
[1766206831744,0.67135806,855.1,853.94,0.20361236]
[1766206831944,0.67135806,855.09,853.94,0.20361236]
[1766206832142,0.67135806,855.08,853.94,0.20361236]
[1766206832342,0.67135806,855.07,853.94,0.20361236]
[1766206832642,0.67135806,855.06,853.94,0.20361236]
[1766206832841,0.67135806,855.05,853.94,0.20361236]
[1766206833041,0.67135806,855.04,853.94,0.20361236]
[1766206833240,5.79473377,855.11,853.94,0.20361236]
[1766206833444,0.67140159,855.1,853.94,0.20361236]
[1766206833646,0.67140159,855.09,853.94,0.20361236]
[1766206833846,0.67140159,855.08,853.94,0.20361236]
[1766206834043,0.67140159,855.07,853.94,0.20361236]
[1766206834248,0.67140159,855.06,853.94,0.20361236]
[1766206834544,0.67140159,855.05,853.94,0.20361236]
[1766206834750,0.67140159,855.04,853.94,0.20361236]
[1766206834950,5.79473377,855.11,853.94,0.20361236]
[1766206835151,0.67142082,855.1,853.94,0.20361236]
[1766206835344,0.67142082,855.09,853.94,0.20361236]
[1766206835548,0.67142082,855.08,853.94,0.20361236]
[1766206835748,0.67142082,855.07,853.94,0.20361236]
[1766206836045,0.67142082,855.06,853.94,0.20361236]
[1766206836250,0.67142082,855.05,853.94,0.20361236]
[1766206836457,0.67142082,855.04,853.94,0.20361236]
[1766206836652,0.67142082,855.03,853.94,0.20361236]
[1766206836852,0.67142082,855.02,853.94,0.20361236]
[1766206837057,0.67142082,855.01,853.94,0.20361236]
[1766206837248,0.67142082,855.0,853.94,0.20361236]
[1766206837448,0.67142082,854.99,853.94,0.20361236]
[1766206837652,0.67142082,854.98,853.94,0.20361236]
[1766206837849,0.67142082,854.97,853.94,0.20361236]
[1766206838054,0.67142082,854.96,853.94,0.20361236]
[1766206838250,0.67142082,854.95,853.94,0.20361236]
[1766206838450,0.67142082,854.94,853.94,0.20361236]
[1766206838753,0.67142082,854.93,853.94,0.20361236]
[1766206838955,0.67142082,854.92,853.94,0.20361236]
[1766206839250,0.67142082,854.91,853.94,0.20361236]
[1766206839460,0.67142082,854.9,853.94,0.20361236]
[1766206839753,5.79473377,855.11,853.94,0.20361236]
[1766206839754,0.67142082,854.89,853.94,0.20361236]
[1766206839958,0.67142082,854.88,853.94,0.20361236]
[1766206840154,0.67142082,854.87,853.94,0.20361236]
[1766206840363,0.67142082,854.86,853.94,0.20361236]
[1766206840556,0.67142082,854.85,853.94,0.20361236]
[1766206840756,0.67142082,854.84,853.94,0.20361236]
[1766206840958,0.67142082,854.83,853.94,0.20361236]
[1766206841159,0.67142082,854.82,853.94,0.20361236]
[1766206841359,0.67142082,854.81,853.94,0.20361236]
[1766206841560,0.67142082,854.8,853.94,0.20361236]
[1766206841761,0.67142082,854.79,853.94,0.20361236]
[1766206842061,0.67142082,854.78,853.94,0.20361236]
[1766206842258,0.67142082,854.77,853.94,0.20361236]
[1766206842456,0.67142082,854.76,853.94,0.20361236]
[1766206842660,0.67142082,854.75,853.94,0.20361236]
[1766206842862,0.67142082,854.74,853.94,0.20361236]
[1766206843062,0.67142082,854.73,853.94,0.20361236]
[1766206843258,0.67142082,854.72,853.94,0.20361236]
[1766206843457,5.79473377,855.11,853.94,0.20361236]
[1766206843661,0.67116562,855.1,853.94,0.20361236]
[1766206843861,0.67116562,855.09,853.94,0.20361236]
[1766206844162,0.67116562,855.08,853.94,0.20361236]
[1766206844362,0.67116562,855.07,853.94,0.20361236]
[1766206844557,0.67116562,855.06,853.94,0.20361236]
[1766206844757,0.67116562,855.05,853.94,0.20361236]
[1766206844962,0.67116562,855.04,853.94,0.20361236]
[1766206845165,0.67116562,855.03,853.94,0.20361236]
[1766206845365,0.67116562,855.02,853.94,0.20361236]
[1766206845560,0.67116562,855.01,853.94,0.20361236]
[1766206845759,0.67116562,855.0,853.94,0.20361236]
[1766206846067,0.67116562,854.99,853.94,0.20361236]
[1766206846365,0.67116562,854.98,853.94,0.20361236]
[1766206846566,0.67116562,854.97,853.94,0.20361236]
[1766206846766,0.67116562,854.96,853.94,0.20361236]
[1766206846967,0.67116562,854.95,853.94,0.20361236]
[1766206847163,0.67116562,854.94,853.94,0.20361236]
[1766206847466,0.67116562,854.93,853.94,0.20361236]
[1766206847665,0.67116562,854.92,853.94,0.20361236]
[1766206847863,0.67116562,854.91,853.94,0.20361236]
[1766206848062,0.67116562,854.9,853.94,0.20361236]
[1766206848265,0.67116562,854.89,853.94,0.20361236]
[1766206848468,0.67116562,854.88,853.94,0.20361236]
[1766206848664,0.67116562,854.87,853.94,0.20361236]
[1766206848867,0.67116562,854.86,853.94,0.20361236]
[1766206849068,0.67116562,854.85,853.94,0.20361236]
[1766206849265,0.67116562,854.84,853.94,0.20361236]
[1766206849463,0.67116562,854.83,853.94,0.20361236]
[1766206849666,0.67116562,854.82,853.94,0.20361236]
[1766206849864,0.67116562,854.81,853.94,0.20361236]
[1766206850069,0.67116562,854.8,853.94,0.20361236]
[1766206850269,5.79473377,855.11,853.94,0.20361236]
[1766206850270,0.67116562,854.79,853.94,0.20361236]
[1766206850466,0.67116562,854.78,853.94,0.20361236]
[1766206850669,0.67116562,854.77,853.94,0.20361236]
[1766206850866,5.79473377,855.11,853.94,0.20361236]
[1766206850867,0.67116562,854.76,853.94,0.20361236]
[1766206851169,0.67116562,854.75,853.94,0.20361236]
[1766206851367,0.67116562,854.74,853.94,0.20361236]
[1766206851564,0.67116562,854.73,853.94,0.20361236]
[1766206851765,5.79473377,855.11,853.94,0.20361236]
[1766206852063,0.67124059,855.1,853.94,0.20361236]
[1766206852269,0.67124059,855.09,853.94,0.20361236]
[1766206852466,0.67124059,855.08,853.94,0.20361236]
[1766206852671,0.67124059,855.07,853.94,0.20361236]
[1766206852966,0.67124059,855.06,853.94,0.20361236]
[1766206853171,0.67124059,855.05,853.94,0.20361236]
[1766206853371,0.67124059,855.04,853.94,0.20361236]
[1766206853566,0.67124059,855.03,853.94,0.20361236]
[1766206853868,0.67124059,855.02,853.94,0.20361236]
[1766206854068,0.67124059,855.01,853.94,0.20361236]
[1766206854370,0.67124059,855.0,853.94,0.20361236]
[1766206854572,0.67124059,854.99,853.94,0.20361236]
[1766206854772,0.67124059,854.98,853.94,0.20361236]
[1766206854969,0.67124059,854.97,853.94,0.20361236]
[1766206855169,0.67124059,854.96,853.94,0.20361236]
[1766206855373,0.67124059,854.95,853.94,0.20361236]
[1766206855570,0.67124059,854.94,853.94,0.20361236]
[1766206855771,0.67124059,854.93,853.94,0.20361236]
[1766206855982,0.67124059,854.92,853.94,0.20361236]
[1766206856171,0.67124059,854.91,853.94,0.20361236]
[1766206856370,0.67124059,854.9,853.94,0.20361236]
[1766206856674,0.67124059,854.89,853.94,0.20361236]
[1766206856871,0.67124059,854.88,853.94,0.20361236]
[1766206857070,0.67124059,854.87,853.94,0.20361236]
[1766206857269,0.67124059,854.86,853.94,0.20361236]
[1766206857471,0.67124059,854.85,853.94,0.20361236]
[1766206857674,0.67124059,854.84,853.94,0.20361236]
[1766206857874,0.67124059,854.83,853.94,0.20361236]
[1766206858077,0.67124059,854.82,853.94,0.20361236]
[1766206858375,0.67124059,854.81,853.94,0.20361236]
[1766206858570,0.67124059,854.8,853.94,0.20361236]
[1766206858774,0.67124059,854.79,853.94,0.20361236]
[1766206858974,0.67124059,854.78,853.94,0.20361236]
[1766206859171,0.67124059,854.77,853.94,0.20361236]
[1766206859476,0.67124059,854.76,853.94,0.20361236]
[1766206859677,0.67124059,854.75,853.94,0.20361236]
[1766206859972,0.67124059,854.74,853.94,0.20361236]
[1766206860184,5.79473377,855.11,853.94,0.20361236]
[1766206860383,0.67094619,855.1,853.94,0.20361236]
[1766206860585,0.67094619,855.09,853.94,0.20361236]
[1766206860776,0.67094619,855.08,853.94,0.20361236]
[1766206860977,0.67094619,855.07,853.94,0.20361236]
[1766206861176,0.67094619,855.06,853.94,0.20361236]
[1766206861475,0.67094619,855.05,853.94,0.20361236]
[1766206861673,0.67094619,855.04,853.94,0.20361236]
[1766206861876,0.67094619,855.03,853.94,0.20361236]
[1766206862074,0.67094619,855.02,853.94,0.20361236]
[1766206862375,0.67094619,855.01,853.94,0.20361236]
[1766206862575,0.67094619,855.0,853.94,0.20361236]
[1766206862775,0.67094619,854.99,853.94,0.20361236]
[1766206862970,0.67094619,854.98,853.94,0.20361236]
[1766206863172,0.67094619,854.97,853.94,0.20361236]
[1766206863374,0.67094619,854.96,853.94,0.20361236]
[1766206863581,0.67094619,854.95,853.94,0.20361236]
[1766206863876,0.67094619,854.94,853.94,0.20361236]
[1766206864076,0.67094619,854.93,853.94,0.20361236]
[1766206864378,0.67094619,854.92,853.94,0.20361236]
[1766206864677,0.67094619,854.91,853.94,0.20361236]
[1766206864872,0.67094619,854.9,853.94,0.20361236]
[1766206865070,5.79473377,855.11,853.94,0.20361236]
[1766206865071,0.67094619,854.89,853.94,0.20361236]
[1766206865275,0.67094619,854.88,853.94,0.20361236]
[1766206865473,0.67094619,854.87,853.94,0.20361236]
[1766206865673,0.67094619,854.86,853.94,0.20361236]
[1766206865874,0.67094619,854.85,853.94,0.20361236]
[1766206866076,0.67094619,854.84,853.94,0.20361236]
[1766206866275,0.67094619,854.83,853.94,0.20361236]
[1766206866478,0.67094619,854.82,853.94,0.20361236]
[1766206866675,0.67094619,854.81,853.94,0.20361236]
[1766206866875,0.67094619,854.8,853.94,0.20361236]
[1766206867080,0.67094619,854.79,853.94,0.20361236]
[1766206867277,0.67094619,854.78,853.94,0.20361236]
[1766206867577,0.67094619,854.77,853.94,0.20361236]
[1766206867776,0.67094619,854.76,853.94,0.20361236]
[1766206867978,5.79473377,855.11,853.94,0.20361236]
[1766206868178,0.67070845,855.1,853.94,0.20361236]
[1766206868475,0.67070845,855.09,853.94,0.20361236]
[1766206868678,0.67070845,855.08,853.94,0.20361236]
[1766206868877,5.79473377,855.11,853.94,0.20361236]
[1766206870480,5.79473377,855.11,853.94,1.94875525]
[1766206871480,5.79473377,855.11,853.94,0.20361236]
[1766206874783,5.79473377,855.11,853.93,48.54020228]
[1766206874978,5.79473377,855.11,854.05,0.20354627]
[1766206875180,5.79473377,855.11,854.05,4.57683635]
[1766206911305,0.67171915,855.1,854.05,4.57683635]
[1766206911606,5.79473377,855.11,854.05,4.57683635]
[1766206911806,0.67171914,855.1,854.05,4.57683635]
[1766206912007,5.79473377,855.11,854.05,4.57683635]
[1766206912204,0.67171914,855.1,854.05,4.57683635]
[1766206912408,5.79473377,855.11,854.05,4.57683635]
[1766206912608,0.67179982,855.1,854.05,4.57683635]
[1766206912807,5.79473377,855.11,854.05,4.57683635]
[1766206913008,0.67179982,855.1,854.05,4.57683635]
[1766206913206,5.79473377,855.11,854.05,4.57683635]
[1766206913406,0.67182641,855.1,854.05,4.57683635]
[1766206913707,0.67182641,855.09,854.05,4.57683635]
[1766206913907,5.79473377,855.11,854.05,4.57683635]
[1766206914107,0.67188742,855.1,854.05,4.57683635]
[1766206914311,0.67188742,855.09,854.05,4.57683635]
[1766206914509,5.79473377,855.11,854.05,4.57683635]
[1766206914813,0.67198249,855.1,854.05,4.57683635]
[1766206915010,0.67198249,855.09,854.05,4.57683635]
[1766206915213,5.79473377,855.11,854.05,4.57683635]
[1766206915414,0.67208563,855.1,854.05,4.57683635]
[1766206915612,0.67208563,855.09,854.05,4.57683635]
[1766206915912,0.67208563,855.08,854.05,4.57683635]
[1766206916117,5.79473377,855.11,854.05,4.57683635]
[1766206916414,0.67211227,855.1,854.05,4.57683635]
[1766206916616,5.79473377,855.11,854.05,4.57683635]
[1766206916617,0.67211227,855.09,854.05,4.57683635]
[1766206916814,0.67211227,855.08,854.05,4.57683635]
[1766206917021,0.67211227,855.07,854.05,4.57683635]
[1766206917318,0.67211227,855.06,854.05,4.57683635]
[1766206917517,0.67211227,855.05,854.05,4.57683635]
[1766206917814,0.67211227,855.04,854.05,4.57683635]
[1766206918017,0.67211227,855.03,854.05,4.57683635]
[1766206918319,0.67211227,855.02,854.05,4.57683635]
[1766206918517,0.67211227,855.01,854.05,4.57683635]
[1766206918713,5.79473377,855.11,854.05,4.57683635]
[1766206918920,0.6724152,855.1,854.05,4.57683635]
[1766206919113,0.6724152,855.09,854.05,4.57683635]
[1766206919313,0.6724152,855.08,854.05,4.57683635]
[1766206919517,0.6724152,855.07,854.05,4.57683635]
[1766206919714,0.6724152,855.06,854.05,4.57683635]
[1766206919912,0.6724152,855.05,854.05,4.57683635]
[1766206920120,0.6724152,855.04,854.05,4.57683635]
[1766206920416,0.6724152,855.03,854.05,4.57683635]
[1766206920617,0.6724152,855.02,854.05,4.57683635]
[1766206920913,0.6724152,855.01,854.05,4.57683635]
[1766206921118,0.6724152,855.0,854.05,4.57683635]
[1766206921317,0.6724152,854.99,854.05,4.57683635]
[1766206921520,5.79473377,855.11,854.05,4.57683635]
[1766206921814,0.67271526,855.1,854.05,4.57683635]
[1766206922018,0.67271526,855.09,854.05,4.57683635]
[1766206922215,0.67271526,855.08,854.05,4.57683635]
[1766206922414,0.67271526,855.07,854.05,4.57683635]
[1766206922720,0.67271526,855.06,854.05,4.57683635]
[1766206922914,0.67271526,855.05,854.05,4.57683635]
[1766206923118,0.67271526,855.04,854.05,4.57683635]
[1766206923318,0.67271526,855.03,854.05,4.57683635]
[1766206923518,0.67271526,855.02,854.05,4.57683635]
[1766206923718,0.67271526,855.01,854.05,4.57683635]
[1766206924018,0.67271526,855.0,854.05,4.57683635]
[1766206924218,0.67271526,854.99,854.05,4.57683635]
[1766206924519,0.67271526,854.98,854.05,4.57683635]
[1766206924720,0.67271526,854.97,854.05,4.57683635]
[1766206924920,0.67271526,854.96,854.05,4.57683635]
[1766206925120,0.67271526,854.95,854.05,4.57683635]
[1766206925316,0.67271526,854.94,854.05,4.57683635]
[1766206925519,5.79473377,855.11,854.05,4.57683635]
[1766206925720,0.67351593,855.1,854.05,4.57683635]
[1766206925919,0.67351593,855.09,854.05,4.57683635]
[1766206926119,0.67351593,855.08,854.05,4.57683635]
[1766206926315,0.67351593,855.07,854.05,4.57683635]
[1766206926520,0.67351593,855.06,854.05,4.57683635]
[1766206926720,0.67351593,855.05,854.05,4.57683635]
[1766206926916,0.67351593,855.04,854.05,4.57683635]
[1766206927121,5.79473377,855.11,854.05,4.57683635]
[1766206927122,0.67351593,855.03,854.05,4.57683635]
[1766206927316,0.67351593,855.02,854.05,4.57683635]
[1766206927616,0.67351593,855.01,854.05,4.57683635]
[1766206927820,0.67351593,855.0,854.05,4.57683635]
[1766206928119,5.79473377,855.11,854.05,4.57683635]
[1766206928120,0.67351593,854.99,854.05,4.57683635]
[1766206928420,0.67351593,854.98,854.05,4.57683635]
[1766206928620,0.67351593,854.97,854.05,4.57683635]
[1766206928917,5.79473377,855.11,854.05,4.57683635]
[1766206928918,0.67351593,854.96,854.05,4.57683635]
[1766206929120,0.67351593,854.95,854.05,4.57683635]
[1766206929321,0.67351593,854.94,854.05,4.57683635]
[1766206929521,0.67351593,854.93,854.05,4.57683635]
[1766206929722,0.67351593,854.92,854.05,4.57683635]
[1766206929923,0.67351593,854.91,854.05,4.57683635]
[1766206930122,0.67351593,854.9,854.05,4.57683635]
[1766206930319,0.67351593,854.89,854.05,4.57683635]
[1766206930523,5.79473377,855.11,854.05,4.57683635]
[1766206930524,0.67351593,854.88,854.05,4.57683635]
[1766206930721,0.67351593,854.87,854.05,4.57683635]
[1766206931033,5.79473377,855.11,854.05,4.57683635]
[1766206931221,0.67455217,855.1,854.05,4.57683635]
[1766206931425,0.67455217,855.09,854.05,4.57683635]
[1766206931625,0.67455217,855.08,854.05,4.57683635]
[1766206931825,0.67455217,855.07,854.05,4.57683635]
[1766206932021,0.67455217,855.06,854.05,4.57683635]
[1766206932321,0.67455217,855.05,854.05,4.57683635]
[1766206932524,0.67455217,855.04,854.05,4.57683635]
[1766206932725,0.67455217,855.03,854.05,4.57683635]
[1766206932924,0.67455217,855.02,854.05,4.57683635]
[1766206933135,0.67455217,855.01,854.05,4.57683635]
[1766206933422,0.67455217,855.0,854.05,4.57683635]
[1766206933626,0.67455217,854.99,854.05,4.57683635]
[1766206933825,0.67455217,854.98,854.05,4.57683635]
[1766206934121,0.67455217,854.97,854.05,4.57683635]
[1766206934321,0.67455217,854.96,854.05,4.57683635]
[1766206934622,0.67455217,854.95,854.05,4.57683635]
[1766206934825,0.67455217,854.94,854.05,4.57683635]
[1766206935022,0.67455217,854.93,854.05,4.57683635]
[1766206935224,0.67455217,854.92,854.05,4.57683635]
[1766206935422,0.67455217,854.91,854.05,4.57683635]
[1766206935727,5.79473377,855.11,854.05,4.57683635]
[1766206935728,0.67455217,854.9,854.05,4.57683635]
[1766206935924,0.67455217,854.89,854.05,4.57683635]
[1766206936224,0.67455217,854.88,854.05,4.57683635]
[1766206936428,0.67455217,854.87,854.05,4.57683635]
[1766206936627,5.79473377,855.11,854.05,4.57683635]
[1766206936828,0.67421821,855.1,854.05,4.57683635]
[1766206937023,0.67421821,855.09,854.05,4.57683635]
[1766206937325,0.67421821,855.08,854.05,4.57683635]
[1766206937623,0.67421821,855.07,854.05,4.57683635]
[1766206937829,0.67421821,855.06,854.05,4.57683635]
[1766206938024,0.67421821,855.05,854.05,4.57683635]
[1766206938329,0.67421821,855.04,854.05,4.57683635]
[1766206938529,0.67421821,855.03,854.05,4.57683635]
[1766206938729,0.67421821,855.02,854.05,4.57683635]
[1766206938929,0.67421821,855.01,854.05,4.57683635]
[1766206939131,0.67421821,855.0,854.05,4.57683635]
[1766206939330,0.67421821,854.99,854.05,4.57683635]
[1766206939527,0.67421821,854.98,854.05,4.57683635]
[1766206939730,5.79473377,855.11,854.05,4.57683635]
[1766206939731,0.67421821,854.97,854.05,4.57683635]
[1766206939931,0.67421821,854.96,854.05,4.57683635]
[1766206940132,0.67421821,854.95,854.05,4.57683635]
[1766206940331,0.67421821,854.94,854.05,4.57683635]
[1766206940627,0.67421821,854.93,854.05,4.57683635]
[1766206940831,0.67421821,854.92,854.05,4.57683635]
[1766206941028,0.67421821,854.91,854.05,4.57683635]
[1766206941232,0.67421821,854.9,854.05,4.57683635]
[1766206941431,0.67421821,854.89,854.05,4.57683635]
[1766206941633,0.67421821,854.88,854.05,4.57683635]
[1766206941832,0.67421821,854.87,854.05,4.57683635]
[1766206942036,0.67421821,854.86,854.05,4.57683635]
[1766206942228,0.67427526,854.85,854.05,4.57683635]
[1766206942435,5.79473377,855.11,854.05,4.57683635]
[1766206942631,0.67418311,855.1,854.05,4.57683635]
[1766206942933,0.67418311,855.09,854.05,4.57683635]
[1766206943133,0.67418311,855.08,854.05,4.57683635]
[1766206943332,0.67418311,855.07,854.05,4.57683635]
[1766206943534,0.67418311,855.06,854.05,4.57683635]
[1766206943734,0.67418311,855.05,854.05,4.57683635]
[1766206943935,0.67418311,855.04,854.05,4.57683635]
[1766206944135,0.67418311,855.03,854.05,4.57683635]
[1766206944335,0.67418311,855.02,854.05,4.57683635]
[1766206944536,0.67418311,855.01,854.05,4.57683635]
[1766206944733,0.67418311,855.0,854.05,4.57683635]
[1766206945037,0.67418311,854.99,854.05,4.57683635]
[1766206945233,1.15771043,855.17,854.05,4.57683635]
[1766206945234,0.67418311,854.98,854.05,4.57683635]
[1766206945438,0.67418311,854.97,854.05,4.57683635]
[1766206945639,0.67418311,854.96,854.05,4.57683635]
[1766206945833,7.30601668,854.95,854.05,4.57683635]
[1766206946035,0.67418311,854.94,854.05,4.57683635]
[1766206946234,0.67418311,854.93,854.05,4.57683635]
[1766206946537,0.67418311,854.92,854.05,4.57683635]
[1766206946735,0.67418311,854.91,854.05,4.57683635]
[1766206946938,0.67418311,854.9,854.05,4.57683635]
[1766206947138,0.67418311,854.89,854.05,4.57683635]
[1766206947439,0.67418311,854.88,854.05,4.57683635]
[1766206947641,0.67418311,854.87,854.05,4.57683635]
[1766206947840,0.67418311,854.86,854.05,4.57683635]
[1766206948042,0.67418311,854.85,854.05,4.57683635]
[1766206948241,0.67418311,854.84,854.05,4.57683635]
[1766206948439,0.67418311,854.83,854.05,4.57683635]
[1766206948653,0.67418311,854.82,854.05,4.57683635]
[1766206948839,0.67418311,854.81,854.05,4.57683635]
[1766206949037,0.67418311,854.8,854.05,4.57683635]
[1766206949241,0.67418311,854.79,854.05,4.57683635]
[1766206949440,0.67418311,854.78,854.05,4.57683635]
[1766206949639,0.67418311,854.77,854.05,4.57683635]
[1766206949944,0.67418311,854.76,854.05,4.57683635]
[1766206950144,0.67418311,854.75,854.05,4.57683635]
[1766206950445,0.67418311,854.74,854.05,4.57683635]
[1766206950641,0.67418311,854.73,854.05,4.57683635]
[1766206950941,0.67418311,854.72,854.05,4.57683635]
[1766206951146,6.63183357,854.95,854.05,4.57683635]
[1766206951445,0.67329199,854.94,854.05,4.57683635]
[1766206951643,0.67329199,854.93,854.05,4.57683635]
[1766206951840,0.67329199,854.92,854.05,4.57683635]
[1766206952045,0.67329199,854.91,854.05,4.57683635]
[1766206952245,0.67329199,854.9,854.05,4.57683635]
[1766206952545,0.67329199,854.89,854.05,4.57683635]
[1766206952745,0.67329199,854.88,854.05,4.57683635]
[1766206952945,0.67329199,854.87,854.05,4.57683635]
[1766206953145,0.67329199,854.86,854.05,4.57683635]
[1766206953346,0.67329199,854.85,854.05,4.57683635]
[1766206953546,0.67329199,854.84,854.05,4.57683635]
[1766206953843,0.67329199,854.83,854.05,4.57683635]
[1766206954044,0.67329199,854.82,854.05,4.57683635]
[1766206954243,0.67329199,854.81,854.05,4.57683635]
[1766206954444,0.67329199,854.8,854.05,4.57683635]
[1766206954645,0.67329199,854.79,854.05,4.57683635]
[1766206954943,0.67329199,854.78,854.05,4.57683635]
[1766206955143,0.67329199,854.77,854.05,4.57683635]
[1766206955347,0.67329199,854.76,854.05,4.57683635]
[1766206955548,0.67329199,854.75,854.05,4.57683635]
[1766206955844,6.63183357,854.95,854.05,4.57683635]
[1766206956045,0.67288644,854.94,854.05,4.57683635]
[1766206956246,0.67288644,854.93,854.05,4.57683635]
[1766206956546,0.67288644,854.92,854.05,4.57683635]
[1766206956745,0.67288644,854.91,854.05,4.57683635]
[1766206956946,0.67288644,854.9,854.05,4.57683635]
[1766206957148,0.67288644,854.89,854.05,4.57683635]
[1766206957359,0.67288644,854.88,854.05,4.57683635]
[1766206957549,0.67288644,854.87,854.05,4.57683635]
[1766206957749,0.67288644,854.86,854.05,4.57683635]
[1766206957951,0.67288644,854.85,854.05,4.57683635]
[1766206958152,0.67288644,854.84,854.05,4.57683635]
[1766206958353,0.67288644,854.83,854.05,4.57683635]
[1766206958550,0.67288644,854.82,854.05,4.57683635]
[1766206958753,0.67288644,854.81,854.05,4.57683635]
[1766206958955,0.67288644,854.8,854.05,4.57683635]
[1766206959255,0.67288644,854.79,854.05,4.57683635]
[1766206959556,0.67288644,854.78,854.05,4.57683635]
[1766206959756,0.67288644,854.77,854.05,4.57683635]
[1766206959955,0.67288644,854.76,854.05,4.57683635]
[1766206960156,6.63183357,854.95,854.05,4.57683635]
[1766206960455,0.67267551,854.94,854.05,4.57683635]
[1766206960657,0.67267551,854.93,854.05,4.57683635]
[1766206960857,0.67267551,854.92,854.05,4.57683635]
[1766206961061,0.67267551,854.91,854.05,4.57683635]
[1766206961254,0.67267551,854.9,854.05,4.57683635]
[1766206961454,0.67267551,854.89,854.05,4.57683635]
[1766206961757,0.67267551,854.88,854.05,4.57683635]
[1766206961953,0.67267551,854.87,854.05,4.57683635]
[1766206962155,0.67267551,854.86,854.05,4.57683635]
[1766206962357,0.67267551,854.85,854.05,4.57683635]
[1766206962658,0.67267551,854.84,854.05,4.57683635]
[1766206962954,0.67267551,854.83,854.05,4.57683635]
[1766206963253,0.67267551,854.82,854.05,4.57683635]
[1766206963454,0.67267551,854.81,854.05,4.57683635]
[1766206963659,0.67267551,854.8,854.05,4.57683635]
[1766206963857,0.67267551,854.79,854.05,4.57683635]
[1766206964055,0.67267551,854.78,854.05,4.57683635]
[1766206964257,0.67267551,854.77,854.05,4.57683635]
[1766206964558,6.63183357,854.95,854.05,4.57683635]
[1766206964757,0.67300606,854.94,854.05,4.57683635]
[1766206964958,0.67300606,854.93,854.05,4.57683635]
[1766206965158,0.67300606,854.92,854.05,4.57683635]
[1766206965367,0.67300606,854.91,854.05,4.57683635]
[1766206965559,0.67300606,854.9,854.05,4.57683635]
[1766206965757,0.67300606,854.89,854.05,4.57683635]
[1766206966061,0.67300606,854.88,854.05,4.57683635]
[1766206966261,0.67300606,854.87,854.05,4.57683635]
[1766206966556,0.67300606,854.86,854.05,4.57683635]
[1766206966856,0.67300606,854.85,854.05,4.57683635]
[1766206967057,0.67300606,854.84,854.05,4.57683635]
[1766206967260,0.67300606,854.83,854.05,4.57683635]
[1766206967558,0.67300606,854.82,854.05,4.57683635]
[1766206967757,0.67300606,854.81,854.05,4.57683635]
[1766206967961,0.67300606,854.8,854.05,4.57683635]
[1766206968162,0.67300606,854.79,854.05,4.57683635]
[1766206968363,0.67300606,854.78,854.05,4.57683635]
[1766206968660,6.63183357,854.95,854.05,4.57683635]
[1766206968863,0.67182847,854.94,854.05,4.57683635]
[1766206969063,0.67182847,854.93,854.05,4.57683635]
[1766206969260,0.67182847,854.92,854.05,4.57683635]
[1766206969562,0.67182847,854.91,854.05,4.57683635]
[1766206969762,0.67182847,854.9,854.05,4.57683635]
[1766206969963,0.67182847,854.89,854.05,4.57683635]
[1766206970163,0.67182847,854.88,854.05,4.57683635]
[1766206970359,0.67182847,854.87,854.05,4.57683635]
[1766206970660,0.67182847,854.86,854.05,4.57683635]
[1766206970858,0.67182847,854.85,854.05,4.57683635]
[1766206971060,0.67182847,854.84,854.05,4.57683635]
[1766206971360,0.67182847,854.83,854.05,4.57683635]
[1766206971562,0.67182847,854.82,854.05,4.57683635]
[1766206971862,0.67182847,854.81,854.05,4.57683635]
[1766206972060,0.67182847,854.8,854.05,4.57683635]
[1766206972358,0.67182847,854.79,854.05,4.57683635]
[1766206972661,0.67182847,854.78,854.05,4.57683635]
[1766206972861,0.67182847,854.77,854.05,4.57683635]
[1766206973061,6.63183357,854.95,854.05,4.57683635]
[1766206973359,0.67185931,854.94,854.05,4.57683635]
[1766206973663,0.67185931,854.93,854.05,4.57683635]
[1766206973863,0.67185931,854.92,854.05,4.57683635]
[1766206974062,0.67185931,854.91,854.05,4.57683635]
[1766206974262,0.67185931,854.9,854.05,4.57683635]
[1766206974461,0.67185931,854.89,854.05,4.57683635]
[1766206974663,0.67185931,854.88,854.05,4.57683635]
[1766206974865,0.67185931,854.87,854.05,4.57683635]
[1766206975066,0.67185931,854.86,854.05,4.57683635]
[1766206975261,0.67185931,854.85,854.05,4.57683635]
[1766206975465,0.67185931,854.84,854.05,4.57683635]
[1766206975665,0.67185931,854.83,854.05,4.57683635]
[1766206975863,0.67185931,854.82,854.05,4.57683635]
[1766206976071,0.67185931,854.81,854.05,4.57683635]
[1766206976266,0.67185931,854.8,854.05,4.57683635]
[1766206976566,0.67185931,854.79,854.05,4.57683635]
[1766206976766,0.67185931,854.78,854.05,4.57683635]
[1766206976962,0.67185931,854.77,854.05,4.57683635]
[1766206977171,6.63183357,854.95,854.05,4.57683635]
[1766206977366,0.67190932,854.94,854.05,4.57683635]
[1766206977565,0.67190932,854.93,854.05,4.57683635]
[1766206977764,0.67190932,854.92,854.05,4.57683635]
[1766206977963,0.67190932,854.91,854.05,4.57683635]
[1766206978168,0.67190932,854.9,854.05,4.57683635]
[1766206978366,0.67190932,854.89,854.05,4.57683635]